fUST/lending_fUST_20251008
["ID","MTS","AMOUNT","RATE_DAILY","PERIOD"]
[389957636,1759909844217,-500.0,0.00021369,2]
[389957638,1759909844225,-500.0,0.00021369,2]
[389957640,1759909844234,-500.0,0.00021369,2]
[389957642,1759909844243,-500.0,0.00021369,2]
[389957644,1759909844252,-151.561202,0.00021369,7]
[389957646,1759909844261,-769.14,0.00021369,2]
[389957648,1759909844269,-2038.01,0.00021369,2]
[389957651,1759909844278,-500.0,0.00021369,2]
[389957653,1759909844287,-151.0,0.00021369,7]
[389957655,1759909844296,-500.0,0.00021369,2]
[389957657,1759909844306,-656.31,0.00021369,2]
[389957659,1759909844316,-151.58141,0.00021369,7]
[389957661,1759909844326,-500.0,0.00021369,2]
[389957663,1759909844335,-604.83,0.00021369,2]
[389957665,1759909844344,-702.03,0.00021369,2]
[389957667,1759909844353,-500.6523863,0.00021369,2]
[389957669,1759909844362,-13264.76,0.00021369,2]
[389957671,1759909844371,-346.43586926,0.00021369,2]
[389957673,1759909844381,-151.0,0.00021369,7]
[389957675,1759909844390,-151.0,0.00021369,7]
[389957677,1759909844398,-152.420299,0.00021369,7]
[389957679,1759909844407,-1092.14,0.00021369,2]
[389957701,1759909844572,-525.84027649,0.00021369,2]
[389957703,1759909844605,-500.0,0.00021369,2]
[389957705,1759909844614,-1345.15,0.00021369,2]
[389957707,1759909844623,-151.0,0.00021369,7]
[389957709,1759909844632,-151.0,0.00021369,7]
[389957711,1759909844641,-151.860604,0.00021369,7]
[389957713,1759909844650,-530.68,0.00021369,2]
[389957715,1759909844659,-500.0,0.00021369,2]
[389957717,1759909844669,-500.0,0.00021369,2]
[389957719,1759909844678,-500.0,0.00021369,2]
[389957722,1759909844688,-500.0,0.00021369,2]
[389957724,1759909844697,-805.44,0.00021369,2]
[389957726,1759909844706,-8307.1,0.00021369,2]
[389957728,1759909844715,-803.49,0.00021369,2]
[389957730,1759909844724,-500.0,0.00021369,2]
[389957732,1759909844733,-151.0,0.00021369,7]
[389957734,1759909844741,-2183.08,0.00021369,2]
[389957736,1759909844750,-151.0,0.00021369,7]
[389957738,1759909844759,-151.927353,0.00021369,7]
[389957740,1759909844768,-549.9,0.00021369,2]
[389957742,1759909844778,-1037.14,0.00021369,2]
[389957744,1759909844787,-500.0,0.00021369,2]
[389957745,1759909844795,-1408.61,0.00021369,2]
[389957747,1759909844804,-500.0,0.00021369,2]
[389957750,1759909844813,-500.0,0.00021369,2]
[389957752,1759909844823,-500.0,0.00021369,2]
[389957754,1759909844832,-757.2,0.00021369,2]
[389957756,1759909844846,-2103.13,0.00021369,2]
[389957758,1759909844855,-539.27,0.00021369,2]
[389957760,1759909844865,-500.0,0.00021369,2]
[389957762,1759909844874,-500.0,0.00021369,2]
[389957764,1759909844885,-3513.32,0.00021369,2]
[389957766,1759909844894,-500.0,0.00021369,2]
[389957768,1759909844902,-4987.04,0.00021369,2]
[389957770,1759909844912,-412.48717941,0.00021369,2]
[389957772,1759909844922,-500.0,0.00021369,2]
[389957773,1759909844932,-1224.64,0.00021369,2]
[389957775,1759909844941,-500.0,0.00021369,2]
[389957777,1759909844950,-500.0,0.00021369,2]
[389957779,1759909844959,-638.77,0.00021369,2]
[389957781,1759909844968,-1648.65,0.00021369,2]
[389957784,1759909844977,-860.96,0.00021369,2]
[389957786,1759909844986,-500.0,0.00021369,2]
[389957788,1759909844995,-1116.05,0.00021369,2]
[389957790,1759909845004,-500.0,0.00021369,2]
[389957792,1759909845013,-151.0,0.00021369,7]
[389957794,1759909845023,-187.858684,0.00021369,7]
[389957796,1759909845031,-1179.83,0.00021369,2]
[389957798,1759909845040,-514.03,0.00021369,2]
[389957800,1759909845049,-874.15,0.00021369,2]
[389957802,1759909845057,-1496.67,0.00021369,2]
[389957804,1759909845066,-810.83,0.00021369,2]
[389957806,1759909845075,-356.93671944,0.00021369,2]
[389957808,1759909845083,-500.0,0.00021369,2]
[389957810,1759909845092,-500.0,0.00021369,2]
[389957811,1759909845101,-1712.7,0.00021369,2]
[389957813,1759909845110,-500.0,0.00021369,2]
[389957816,1759909845119,-7828.61,0.00021369,2]
[389957818,1759909845129,-151.0,0.00021369,7]
[389957819,1759909845138,-151.0,0.00021369,7]
[389957821,1759909845147,-500.0,0.00021369,2]
[389957823,1759909845156,-151.0,0.00021369,7]
[389957826,1759909845165,-151.0,0.00021369,7]
[389957828,1759909845174,-500.0,0.00021369,2]
[389957830,1759909845184,-151.0,0.00021369,7]
[389957831,1759909845192,-151.0,0.00021369,7]
[389957833,1759909845201,-151.0,0.00021369,7]
[389957835,1759909845210,-500.0,0.00021369,2]
[389957837,1759909845219,-151.0,0.00021369,7]
[389957840,1759909845228,-151.0,0.00021369,7]
[389957843,1759909845237,-151.0,0.00021369,7]
[389957846,1759909845246,-881.98,0.00021369,2]
[389957849,1759909845255,-500.0,0.00021369,2]
[389957852,1759909845264,-500.0,0.00021369,2]
[389957856,1759909845274,-500.0,0.00021369,2]
[389957859,1759909845283,-787.75,0.00021369,2]
[389957862,1759909845293,-500.0,0.00021369,2]
[389957865,1759909845302,-827.81,0.00021369,2]
[389957867,1759909845311,-3669.88,0.00021369,2]
[389957870,1759909845320,-500.31414163,0.00021369,2]
[389957874,1759909845332,-22189.03,0.00021369,2]
[389957877,1759909845341,-1122.75,0.00021369,2]
[389957880,1759909845350,-151.0,0.00021369,7]
[389957883,1759909845359,-500.0,0.00021369,2]
[389957885,1759909845368,-151.0,0.00021369,7]
[389957887,1759909845377,-487.17678357,0.00021369,2]
[389957889,1759909845386,-1322.93,0.00021369,2]
[389957891,1759909845395,-151.0,0.00021369,7]
[389957893,1759909845404,-151.0,0.00021369,7]
[389957895,1759909845413,-151.0,0.00021369,7]
[389957897,1759909845422,-152.659776,0.00021369,7]
[389957899,1759909845431,-420.641659,0.00021369,7]
[389957901,1759909845441,-420.641659,0.00021369,7]
[389957903,1759909845450,-420.641659,0.00021369,7]
[389957905,1759909845459,-500.0,0.00021369,2]
[389957907,1759909845468,-420.641659,0.00021369,7]
[389957909,1759909845477,-500.0,0.00021369,2]
[389957911,1759909845486,-420.641659,0.00021369,7]
[389957913,1759909845495,-420.641659,0.00021369,7]
[389957915,1759909845504,-1389.73,0.00021369,2]
[389957917,1759909845513,-500.0,0.00021369,2]
[389957920,1759909845522,-420.641659,0.00021369,7]
[389957922,1759909845531,-5301.8,0.00021369,2]
[389957924,1759909845541,-420.641659,0.00021369,7]
[389957926,1759909845550,-420.641659,0.00021369,7]
[389957928,1759909845561,-500.0,0.00021369,2]
[389957930,1759909845570,-420.641659,0.00021369,7]
[389957932,1759909845580,-420.641659,0.00021369,7]
[389957934,1759909845589,-722.45,0.00021369,2]
[389957936,1759909845598,-420.641659,0.00021369,7]
[389957938,1759909845607,-500.0,0.00021369,2]
[389957940,1759909845616,-420.641659,0.00021369,7]
[389957942,1759909845625,-420.641659,0.00021369,7]
[389957944,1759909845634,-500.0,0.00021369,2]
[389957946,1759909845643,-420.641659,0.00021369,7]
[389957948,1759909845653,-420.641659,0.00021369,7]
[389957950,1759909845661,-420.641659,0.00021369,7]
[389957952,1759909845670,-420.641659,0.00021369,7]
[389957954,1759909845679,-420.641659,0.00021369,7]
[389957956,1759909845688,-420.641654,0.00021369,7]
[389957958,1759909845697,-5077.29,0.00021369,2]
[389957960,1759909845706,-5619.05,0.00021369,2]
[389957962,1759909845715,-151.0,0.00021369,7]
[389957964,1759909845724,-500.0,0.00021369,2]
[389957966,1759909845733,-151.0,0.00021369,7]
[389957968,1759909845743,-696.72,0.00021369,2]
[389957970,1759909845753,-151.0,0.00021369,7]
[389957972,1759909845762,-151.0,0.00021369,7]
[389957974,1759909845772,-151.0,0.00021369,7]
[389957976,1759909845781,-151.0,0.00021369,7]
[389957978,1759909845790,-151.0,0.00021369,7]
[389957980,1759909845800,-1000.0,0.00021369,2]
[389957982,1759909845812,-263.93447155,0.00021369,7]
[389957984,1759909845822,-500.0,0.00021369,2]
[389957986,1759909845831,-500.0,0.00021369,2]
[389957988,1759909845843,-151.0,0.00021369,7]
[389957990,1759909845854,-155.974444,0.00021369,7]
[389957992,1759909845864,-500.0,0.00021369,2]
[389957994,1759909845873,-713.63,0.00021369,2]
[389957996,1759909845882,-500.0,0.00021369,2]
[389957998,1759909845891,-500.0,0.00021369,2]
[389958000,1759909845900,-9692.4,0.00021369,2]
[389958002,1759909845909,-3852.52,0.00021369,2]
[389958004,1759909845921,-151.0,0.00021369,7]
[389958006,1759909845930,-151.0,0.00021369,7]
[389958008,1759909845939,-151.0,0.00021369,7]
[389958010,1759909845948,-151.0,0.00021369,7]
[389958012,1759909845957,-151.0,0.00021369,7]
[389958014,1759909845966,-500.0,0.00021369,2]
[389958016,1759909845976,-151.0,0.00021369,7]
[389958018,1759909845984,-151.0,0.00021369,7]
[389958020,1759909845994,-154.026866,0.00021369,7]
[389958022,1759909846003,-151.819959,0.00021369,7]
[389958024,1759909846012,-1258.69,0.00021369,2]
[389958026,1759909846021,-1025.84,0.00021369,2]
[389958028,1759909846030,-571.64,0.00021369,2]
[389958030,1759909846039,-500.0,0.00021369,2]
[389958032,1759909846049,-500.0,0.00021369,2]
[389958034,1759909846058,-200.0,0.00021369,3]
[389958036,1759909846067,-200.0,0.00021369,3]
[389958038,1759909846076,-9639.84,0.00021369,2]
[389958040,1759909846085,-200.0,0.00021369,3]
[389958042,1759909846095,-200.0,0.00021369,3]
[389958044,1759909846104,-500.0,0.00021369,2]
[389958046,1759909846113,-500.0,0.00021369,2]
[389958048,1759909846122,-200.0,0.00021369,3]
[389958050,1759909846130,-200.0,0.00021369,3]
[389958052,1759909846139,-500.0,0.00021369,2]
[389958054,1759909846149,-1258.44,0.00021369,2]
[389958056,1759909846158,-500.0,0.00021369,2]
[389958058,1759909846166,-1517.07,0.00021369,2]
[389958060,1759909846175,-500.0,0.00021369,2]
[389958062,1759909846184,-2801.3,0.00021369,2]
[389958064,1759909846193,-578.71,0.00021369,2]
[389958066,1759909846201,-1734.56,0.00021369,2]
[389958068,1759909846210,-578.71,0.00021369,2]
[389958070,1759909846219,-578.71,0.00021369,2]
[389958072,1759909846228,-578.71,0.00021369,2]
[389958074,1759909846237,-578.71,0.00021369,2]
[389958076,1759909846246,-578.71,0.00021369,2]
[389958078,1759909846254,-578.71,0.00021369,2]
[389958080,1759909846263,-578.71,0.00021369,2]
[389958082,1759909846271,-578.71,0.00021369,2]
[389958084,1759909846280,-500.0,0.00021369,2]
[389958086,1759909846288,-578.71,0.00021369,2]
[389958088,1759909846297,-578.71,0.00021369,2]
[389958090,1759909846306,-578.71,0.00021369,2]
[389958092,1759909846315,-578.71,0.00021369,2]
[389958093,1759909846324,-4310.13,0.00021369,2]
[389958096,1759909846333,-578.71,0.00021369,2]
[389958098,1759909846342,-578.71,0.00021369,2]
[389958100,1759909846352,-578.71,0.00021369,2]
[389958102,1759909846361,-500.0,0.00021369,2]
[389958104,1759909846369,-500.0,0.00021369,2]
[389958106,1759909846378,-578.71,0.00021369,2]
[389958108,1759909846389,-578.71,0.00021369,2]
[389958110,1759909846398,-1653.96,0.00021369,2]
[389958112,1759909846406,-578.71,0.00021369,2]
[389958114,1759909846415,-578.71,0.00021369,2]
[389958116,1759909846424,-578.71,0.00021369,2]
[389958118,1759909846432,-500.0,0.00021369,2]
[389958120,1759909846441,-500.0,0.00021369,2]
[389958122,1759909846450,-578.71,0.00021369,2]
[389958124,1759909846460,-578.71,0.00021369,2]
[389958126,1759909846470,-578.8190148,0.00021369,2]
[389958128,1759909846479,-500.0,0.00021369,2]
[389958130,1759909846488,-1024.67,0.00021369,2]
[389958132,1759909846497,-500.0,0.00021369,2]
[389958134,1759909846505,-500.0,0.00021369,2]
[389958136,1759909846514,-402.00603937,0.00021369,2]
[389958138,1759909846523,-500.0,0.00021369,2]
[389958140,1759909846531,-412.470867,0.00021369,7]
[389958142,1759909846540,-412.470867,0.00021369,7]
[389958144,1759909846550,-500.0,0.00021369,2]
[389958146,1759909846559,-483.2974563,0.00021369,2]
[389958148,1759909846568,-412.470867,0.00021369,7]
[389958150,1759909846576,-412.470867,0.00021369,7]
[389958152,1759909846585,-412.470867,0.00021369,7]
[389958154,1759909846594,-412.470867,0.00021369,7]
[389958156,1759909846603,-412.470867,0.00021369,7]
[389958158,1759909846613,-412.470867,0.00021369,7]
[389958160,1759909846622,-412.470867,0.00021369,7]
[389958162,1759909846630,-500.0,0.00021369,2]
[389958164,1759909846640,-412.470867,0.00021369,7]
[389958166,1759909846648,-412.470867,0.00021369,7]
[389958168,1759909846657,-412.470867,0.00021369,7]
[389958170,1759909846667,-412.470867,0.00021369,7]
[389958171,1759909846676,-412.470867,0.00021369,7]
[389958173,1759909846686,-412.470867,0.00021369,7]
[389958175,1759909846694,-559.68,0.00021369,2]
[389958176,1759909846703,-412.470867,0.00021369,7]
[389958177,1759909846713,-500.0,0.00021369,2]
[389958178,1759909846722,-412.470867,0.00021369,7]
[389958179,1759909846731,-412.470867,0.00021369,7]
[389958180,1759909846740,-1794.05,0.00021369,2]
[389958181,1759909846749,-1505.72,0.00021369,2]
[389958182,1759909846758,-412.470867,0.00021369,7]
[389958183,1759909846767,-412.470874,0.00021369,7]
[389958184,1759909846776,-500.0,0.00021369,2]
[389958185,1759909846785,-866.39,0.00021369,2]
[389958186,1759909846794,-500.0,0.00021369,2]
[389958189,1759909846860,-500.0,0.00021369,2]
[389958191,1759909846874,-2215.02,0.00021369,2]
[389958193,1759909846885,-151.0,0.00021369,7]
[389958195,1759909846894,-151.0,0.00021369,7]
[389958197,1759909846903,-151.0,0.00021369,7]
[389958199,1759909846912,-1686.01,0.00021369,2]
[389958201,1759909846921,-151.0,0.00021369,7]
[389958203,1759909846929,-1557.46,0.00021369,2]
[389958205,1759909846939,-151.0,0.00021369,7]
[389958207,1759909846948,-2074.11,0.00021369,2]
[389958208,1759909846956,-151.0,0.00021369,7]
[389958210,1759909846965,-151.0,0.00021369,7]
[389958212,1759909846974,-151.0,0.00021369,7]
[389958214,1759909846982,-151.0,0.00021369,7]
[389958216,1759909846991,-151.0,0.00021369,7]
[389958218,1759909847000,-151.0,0.00021369,7]
[389958220,1759909847009,-151.0,0.00021369,7]
[389958222,1759909847018,-153.822183,0.00021369,7]
[389958224,1759909847027,-151.0,0.00021369,7]
[389958226,1759909847036,-500.0,0.00021369,2]
[389958228,1759909847045,-151.0,0.00021369,7]
[389958230,1759909847055,-500.7998235,0.00021369,2]
[389958232,1759909847064,-151.0,0.00021369,7]
[389958234,1759909847073,-500.0,0.00021369,2]
[389958236,1759909847082,-179.922614,0.00021369,7]
[389958238,1759909847091,-151.0,0.00021369,7]
[389958241,1759909847101,-500.0,0.00021369,2]
[389958243,1759909847110,-500.0,0.00021369,2]
[389958245,1759909847119,-151.0,0.00021369,7]
[389958247,1759909847128,-151.0,0.00021369,7]
[389958249,1759909847136,-500.0,0.00021369,2]
[389958251,1759909847145,-151.0,0.00021369,7]
[389958253,1759909847154,-500.0,0.00021369,2]
[389958254,1759909847163,-151.0,0.00021369,7]
[389958256,1759909847172,-151.0,0.00021369,7]
[389958258,1759909847180,-151.0,0.00021369,7]
[389958260,1759909847189,-2405.74,0.00021369,2]
[389958262,1759909847198,-501.12586889,0.00021369,2]
[389958264,1759909847207,-500.0,0.00021369,2]
[389958266,1759909847215,-500.0,0.00021369,2]
[389958268,1759909847224,-500.0,0.00021369,2]
[389958270,1759909847233,-151.0,0.00021369,7]
[389958272,1759909847242,-500.0,0.00021369,2]
[389958274,1759909847251,-151.0,0.00021369,7]
[389958276,1759909847260,-151.0,0.00021369,7]
[389958278,1759909847269,-1768.68,0.00021369,2]
[389958280,1759909847278,-151.0,0.00021369,7]
[389958282,1759909847287,-151.0,0.00021369,7]
[389958284,1759909847297,-264.735712,0.00021369,7]
[389958286,1759909847306,-151.0,0.00021369,7]
[389958288,1759909847315,-155.686239,0.00021369,7]
[389958290,1759909847324,-151.0,0.00021369,7]
[389958292,1759909847333,-151.0,0.00021369,7]
[389958294,1759909847342,-155.686239,0.00021369,7]
[389958296,1759909847350,-151.0,0.00021369,7]
[389958298,1759909847359,-151.0,0.00021369,7]
[389958300,1759909847368,-155.686239,0.00021369,7]
[389958302,1759909847377,-151.0,0.00021369,7]
[389958304,1759909847386,-500.0,0.00021369,2]
[389958306,1759909847395,-151.56807289,0.00021369,2]
[389958308,1759909847404,-155.686239,0.00021369,7]
[389958310,1759909847413,-151.0,0.00021369,7]
[389958312,1759909847422,-2045.31,0.00021369,2]
[389958314,1759909847431,-500.0,0.00021369,2]
[389958317,1759909847440,-155.686239,0.00021369,7]
[389958318,1759909847450,-1151.32,0.00021369,2]
[389958320,1759909847460,-151.0,0.00021369,7]
[389958322,1759909847469,-500.0,0.00021369,2]
[389958325,1759909847478,-155.686239,0.00021369,7]
[389958326,1759909847487,-151.0,0.00021369,7]
[389958329,1759909847496,-155.686239,0.00021369,7]
[389958331,1759909847505,-3980.97,0.00021369,2]
[389958333,1759909847520,-500.25376829,0.00021369,2]
[389958335,1759909847529,-155.686239,0.00021369,7]
[389958337,1759909847538,-151.0,0.00021369,7]
[389958338,1759909847547,-480.78310842,0.00021369,2]
[389958341,1759909847557,-500.0,0.00021369,2]
[389958343,1759909847566,-155.686239,0.00021369,7]
[389958345,1759909847575,-155.686239,0.00021369,7]
[389958346,1759909847584,-151.0,0.00021369,7]
[389958348,1759909847593,-155.686239,0.00021369,7]
[389958350,1759909847602,-201.25016,0.00021369,7]
[389958353,1759909847613,-155.686239,0.00021369,7]
[389958355,1759909847623,-3216.96,0.00021369,2]
[389958357,1759909847631,-155.686239,0.00021369,7]
[389958359,1759909847640,-155.686239,0.00021369,7]
[389958361,1759909847648,-155.686239,0.00021369,7]
[389958363,1759909847658,-155.686239,0.00021369,7]
[389958365,1759909847666,-155.686239,0.00021369,7]
[389958367,1759909847676,-155.686239,0.00021369,7]
[389958369,1759909847685,-500.0,0.00021369,2]
[389958371,1759909847694,-155.686239,0.00021369,7]
[389958373,1759909847703,-2444.04,0.00021369,2]
[389958375,1759909847712,-155.686234,0.00021369,7]
[389958377,1759909847721,-1586.37,0.00021369,2]
[389958379,1759909847729,-546.78,0.00021369,2]
[389958381,1759909847738,-500.0,0.00021369,2]
[389958383,1759909847748,-500.0,0.00021369,2]
[389958385,1759909847758,-1674.52,0.00021369,2]
[389958387,1759909847768,-4841.18,0.00021369,2]
[389958389,1759909847778,-500.0,0.00021369,2]
[389958391,1759909847787,-500.0,0.00021369,2]
[389958393,1759909847797,-4004.14,0.00021369,2]
[389958395,1759909847807,-500.0,0.00021369,2]
[389958397,1759909847816,-500.0,0.00021369,2]
[389958399,1759909847825,-500.0,0.00021369,2]
[389958401,1759909847834,-500.0,0.00021369,2]
[389958403,1759909847846,-500.0,0.00021369,2]
[389958405,1759909847856,-469.41049591,0.00021369,2]
[389958407,1759909847865,-500.0,0.00021369,2]
[389958409,1759909847874,-500.0,0.00021369,2]
[389958411,1759909847884,-500.0,0.00021369,2]
[389958413,1759909847893,-721.93,0.00021369,2]
[389958415,1759909847902,-500.0,0.00021369,2]
[389958417,1759909847911,-2923.7,0.00021369,2]
[389958419,1759909847922,-774.76,0.00021369,2]
[389958421,1759909847931,-500.0,0.00021369,2]
[389958423,1759909847940,-3520.86,0.00021369,2]
[389958425,1759909847948,-500.0,0.00021369,2]
[389958427,1759909847958,-977.89,0.00021369,2]
[389958429,1759909847967,-214.61534,0.00021369,7]
[389958431,1759909847975,-500.0,0.00021369,2]
[389958433,1759909847984,-214.61534,0.00021369,7]
[389958435,1759909847994,-214.61534,0.00021369,7]
[389958437,1759909848004,-214.61534,0.00021369,7]
[389958439,1759909848013,-214.61534,0.00021369,7]
[389958441,1759909848022,-214.61534,0.00021369,7]
[389958443,1759909848031,-214.61534,0.00021369,7]
[389958445,1759909848040,-214.61534,0.00021369,7]
[389958447,1759909848050,-214.61534,0.00021369,7]
[389958449,1759909848059,-214.61534,0.00021369,7]
[389958451,1759909848068,-214.61534,0.00021369,7]
[389958453,1759909848077,-9210.25,0.00021369,2]
[389958455,1759909848087,-214.61534,0.00021369,7]
[389958457,1759909848096,-214.61534,0.00021369,7]
[389958459,1759909848105,-214.61534,0.00021369,7]
[389958461,1759909848114,-2788.13,0.00021369,2]
[389958463,1759909848123,-214.61534,0.00021369,7]
[389958465,1759909848133,-500.0,0.00021369,2]
[389958467,1759909848142,-214.61534,0.00021369,7]
[389958469,1759909848150,-500.0,0.00021369,2]
[389958471,1759909848159,-500.0,0.00021369,2]
[389958473,1759909848167,-214.61534,0.00021369,7]
[389958475,1759909848176,-727.63,0.00021369,2]
[389958477,1759909848186,-214.61534,0.00021369,7]
[389958479,1759909848196,-214.61534,0.00021369,7]
[389958481,1759909848205,-500.0,0.00021369,2]
[389958483,1759909848214,-214.615336,0.00021369,7]
[389958485,1759909848223,-500.0,0.00021369,2]
[389958487,1759909848231,-1587.28,0.00021369,2]
[389958489,1759909848240,-500.0,0.00021369,2]
[389958491,1759909848249,-500.0,0.00021369,2]
[389958493,1759909848258,-500.0,0.00021369,2]
[389958495,1759909848267,-25122.84,0.00021369,2]
[389958497,1759909848277,-512.3,0.00021369,2]
[389958499,1759909848287,-1032.09,0.00021369,2]
[389958501,1759909848297,-151.0,0.00021369,7]
[389958503,1759909848306,-151.0,0.00021369,7]
[389958505,1759909848316,-500.0,0.00021369,2]
[389958507,1759909848326,-2010.13,0.00021369,2]
[389958509,1759909848335,-151.0,0.00021369,7]
[389958511,1759909848344,-151.0,0.00021369,7]
[389958513,1759909848353,-4114.1,0.00021369,2]
[389958515,1759909848362,-151.0,0.00021369,7]
[389958517,1759909848372,-740.16,0.00021369,2]
[389958519,1759909848381,-151.0,0.00021369,7]
[389958521,1759909848390,-500.0,0.00021369,2]
[389958524,1759909848400,-204.81538,0.00021369,7]
[389958526,1759909848409,-1642.29,0.00021369,2]
[389958528,1759909848418,-500.0,0.00021369,2]
[389958530,1759909848427,-500.0,0.00021369,2]
[389958532,1759909848436,-3588.75,0.00021369,2]
[389958534,1759909848445,-502.35707718,0.00021369,2]
[389958536,1759909848454,-506.6561392,0.00021369,2]
[389958538,1759909848463,-10541.41,0.00021369,2]
[389958540,1759909848472,-151.0,0.00021369,7]
[389958542,1759909848481,-151.0,0.00021369,7]
[389958544,1759909848491,-500.0,0.00021369,2]
[389958546,1759909848500,-157.139098,0.00021369,7]
[389958548,1759909848509,-500.0,0.00021369,2]
[389958550,1759909848518,-151.0,0.00021369,7]
[389958552,1759909848527,-151.0,0.00021369,7]
[389958554,1759909848536,-151.0,0.00021369,7]
[389958556,1759909848546,-151.0,0.00021369,7]
[389958558,1759909848556,-151.0,0.00021369,7]
[389958560,1759909848565,-151.0,0.00021369,7]
[389958562,1759909848574,-151.0,0.00021369,7]
[389958564,1759909848583,-672.82,0.00021369,2]
[389958566,1759909848593,-530.69263608,0.00021369,2]
[389958568,1759909848602,-2059.67,0.00021369,2]
[389958570,1759909848611,-2059.67,0.00021369,2]
[389958572,1759909848623,-500.0,0.00021369,2]
[389958574,1759909848632,-2059.67,0.00021369,2]
[389958576,1759909848641,-2059.67,0.00021369,2]
[389958578,1759909848651,-2059.67,0.00021369,2]
[389958581,1759909848660,-2059.67,0.00021369,2]
[389958583,1759909848669,-500.76076163,0.00021369,2]
[389958585,1759909848679,-2059.67,0.00021369,2]
[389958587,1759909848688,-2059.67,0.00021369,2]
[389958589,1759909848697,-2059.67,0.00021369,2]
[389958591,1759909848706,-500.0,0.00021369,2]
[389958593,1759909848715,-500.0,0.00021369,2]
[389958595,1759909848724,-2059.67,0.00021369,2]
[389958597,1759909848733,-463.2117497,0.00021369,2]
[389958599,1759909848742,-2059.67,0.00021369,2]
[389958601,1759909848751,-2059.67,0.00021369,2]
[389958603,1759909848760,-2059.67,0.00021369,2]
[389958605,1759909848769,-2059.67,0.00021369,2]
[389958607,1759909848779,-500.0,0.00021369,2]
[389958609,1759909848788,-2059.67,0.00021369,2]
[389958611,1759909848798,-2059.67,0.00021369,2]
[389958613,1759909848807,-2865.24,0.00021369,2]
[389958615,1759909848816,-151.0,0.00021369,7]
[389958617,1759909848826,-2059.67,0.00021369,2]
[389958619,1759909848836,-2059.67,0.00021369,2]
[389958621,1759909848849,-151.0,0.00021369,7]
[389958623,1759909848858,-2059.67,0.00021369,2]
[389958625,1759909848868,-151.0,0.00021369,7]
[389958627,1759909848877,-2059.67,0.00021369,2]
[389958629,1759909848888,-151.0,0.00021369,7]
[389958631,1759909848898,-2059.67,0.00021369,2]
[389958633,1759909848907,-2059.67,0.00021369,2]
[389958635,1759909848919,-500.0,0.00021369,2]
[389958637,1759909848929,-151.0,0.00021369,7]
[389958639,1759909848938,-2059.67,0.00021369,2]
[389958641,1759909848948,-2059.84532995,0.00021369,2]
[389958643,1759909848957,-151.0,0.00021369,7]
[389958645,1759909848966,-298.660817,0.00021369,7]
[389958647,1759909848975,-534.96,0.00021369,2]
[389958649,1759909848985,-1108.8,0.00021369,2]
[389958651,1759909848995,-4902.87,0.00021369,2]
[389958653,1759909849005,-500.0,0.00021369,2]
[389958655,1759909849014,-598.27,0.00021369,2]
[389958657,1759909849024,-1901.54,0.00021369,2]
[389958660,1759909849034,-1577.07,0.00021369,2]
[389958662,1759909849044,-12060.56,0.00021369,2]
[389958664,1759909849054,-500.0,0.00021369,2]